fUSD/lending_fUSD_20260529
["ID","MTS","AMOUNT","RATE_DAILY","PERIOD"]
[423245042,1779984426000,160.11,7.068e-05,2]
[423245041,1779984426000,160.11,6.525e-05,2]
[423245045,1779984427000,160.11,8.7e-05,2]
[423245044,1779984427000,160.11,8.156e-05,2]
[423245043,1779984427000,160.11,7.612e-05,2]
[423245046,1779984427000,160.11,9.243e-05,2]
[423245049,1779984428000,160.11,0.00010874,2]
[423245048,1779984428000,160.11,0.00010331,2]
[423245047,1779984428000,160.11,9.787e-05,2]
[423245051,1779984429000,-119.21337947,0.00011232,2]
[423245050,1779984429000,-169.46,0.00011232,2]
[423245052,1779984451000,-173.03146296,0.00011232,2]
[423245053,1779984451000,-171.62,0.00011232,2]
[423245054,1779984451000,-150.0,0.00011351,2]
[423245059,1779984451000,-154.55259398,0.00011962,2]
[423245056,1779984451000,-150.0,0.00011464,2]
[423245057,1779984451000,-150.0,0.00011576,2]
[423245058,1779984451000,-150.0,0.00011689,2]
[423245055,1779984451000,-160.11,0.00011418,2]
[423245073,1779984632000,-672.09,0.000122,2]
[423245072,1779984632000,-820.01474309,0.000122,2]
[423245071,1779984632000,-237.95492472,0.000122,2]
[423245070,1779984632000,-5.55740602,0.00011962,2]
[423245075,1779984632000,-73095.32150698,0.000122,2]
[423245069,1779984632000,-150.0,0.00011603,2]
[423245076,1779984632000,-607.56498033,0.000122,2]
[423245077,1779984632000,-391.88,0.000122,2]
[423245078,1779984632000,-1421.69894956,0.000122,2]
[423245074,1779984632000,-1364.94274319,0.000122,2]
[423245080,1779984632000,-11832.43012666,0.000122,2]
[423245079,1779984632000,-1274.97908224,0.000122,2]
[423245098,1779984638000,-150.0,0.00012499,2]
[423245099,1779984638000,-160.11,0.00012506,2]
[423245100,1779984638000,-150.0,0.00012538,2]
[423245103,1779984638000,-178.29313302,0.00012763,2]
[423245102,1779984638000,-150.0,0.00012661,2]
[423245104,1779984638000,-500.0,0.00012763,2]
[423245108,1779984638000,-262.75215966,0.00012899,2]
[423245119,1779984638000,-500.0,0.00012899,2]
[423245118,1779984638000,-500.0,0.00012899,2]
[423245101,1779984638000,-5531.0,0.000126,3]
[423245097,1779984638000,-150.0,0.00012415,2]
[423245095,1779984638000,-250.0,0.00012355,2]
[423245105,1779984638000,-250.0,0.00012763,2]
[423245096,1779984638000,-1200.0,0.00012399,2]
[423245091,1779984638000,-304.0,0.000122,2]
[423245092,1779984638000,-103769.73995644,0.000122,2]
[423245093,1779984638000,-2876.673677,0.00012293,2]
[423245090,1779984638000,-441.46632711,0.000122,2]
[423245089,1779984638000,-460.91665968,0.000122,2]
[423245088,1779984638000,-500.0,0.000122,2]
[423245087,1779984638000,-1620.0,0.000122,2]
[423245112,1779984638000,-500.0,0.00012899,2]
[423245106,1779984638000,-150.0,0.00012784,2]
[423245111,1779984638000,-500.0,0.00012899,2]
[423245094,1779984638000,-504.4969781,0.00012355,2]
[423245115,1779984638000,-500.0,0.00012899,2]
[423245114,1779984638000,-500.0,0.00012899,2]
[423245150,1779984638000,-500.0,0.00012899,2]
[423245152,1779984638000,-500.0,0.00012899,2]
[423245148,1779984638000,-500.0,0.00012899,2]
[423245146,1779984638000,-500.0,0.00012899,2]
[423245144,1779984638000,-500.0,0.00012899,2]
[423245131,1779984638000,-500.0,0.00012899,2]
[423245129,1779984638000,-500.0,0.00012899,2]
[423245125,1779984638000,-500.0,0.00012899,2]
[423245139,1779984638000,-500.0,0.00012899,2]
[423245127,1779984638000,-500.0,0.00012899,2]
[423245140,1779984638000,-500.0,0.00012899,2]
[423245142,1779984638000,-500.0,0.00012899,2]
[423245138,1779984638000,-407.00558012,0.00012899,2]
[423245110,1779984638000,-500.0,0.00012899,2]
[423245137,1779984638000,-500.0,0.00012899,2]
[423245107,1779984638000,-4431.14125193,0.0001289,2]
[423245116,1779984638000,-500.0,0.00012899,2]
[423245109,1779984638000,-500.0,0.00012899,2]
[423245117,1779984638000,-500.0,0.00012899,2]
[423245113,1779984638000,-500.0,0.00012899,2]
[423245121,1779984638000,-500.0,0.00012899,2]
[423245123,1779984638000,-500.0,0.00012899,2]
[423245135,1779984638000,-500.0,0.00012899,2]
[423245133,1779984638000,-500.0,0.00012899,2]
[423245223,1779984639000,-500.0,0.00012899,2]
[423245236,1779984639000,-500.0,0.00012899,2]
[423245239,1779984639000,-500.0,0.00012899,2]
[423245245,1779984639000,-500.0,0.00012899,2]
[423245243,1779984639000,-500.0,0.00012899,2]
[423245225,1779984639000,-500.0,0.00012899,2]
[423245232,1779984639000,-500.0,0.00012899,2]
[423245230,1779984639000,-500.0,0.00012899,2]
[423245228,1779984639000,-500.0,0.00012899,2]
[423245226,1779984639000,-252.91192859,0.00012899,2]
[423245241,1779984639000,-500.0,0.00012899,2]
[423245219,1779984639000,-500.0,0.00012899,2]
[423245234,1779984639000,-573.8009494,0.00012899,2]
[423245247,1779984639000,-500.0,0.00012899,2]
[423245265,1779984639000,-500.0,0.00012899,2]
[423245251,1779984639000,-500.0,0.00012899,2]
[423245253,1779984639000,-500.0,0.00012899,2]
[423245257,1779984639000,-500.0,0.00012899,2]
[423245255,1779984639000,-500.0,0.00012899,2]
[423245271,1779984639000,-500.0,0.00012899,2]
[423245267,1779984639000,-346.18021367,0.00012899,2]
[423245259,1779984639000,-500.0,0.00012899,2]
[423245263,1779984639000,-500.0,0.00012899,2]
[423245269,1779984639000,-500.0,0.00012899,2]
[423245261,1779984639000,-500.0,0.00012899,2]
[423245221,1779984639000,-500.0,0.00012899,2]
[423245274,1779984639000,-500.0,0.00012899,2]
[423245276,1779984639000,-500.0,0.00012899,2]
[423245278,1779984639000,-500.0,0.00012899,2]
[423245249,1779984639000,-500.0,0.00012899,2]
[423245207,1779984639000,-500.0,0.00012899,2]
[423245191,1779984639000,-500.0,0.00012899,2]
[423245205,1779984639000,-500.0,0.00012899,2]
[423245280,1779984639000,-1049.39,0.00012902,2]
[423245156,1779984639000,-500.0,0.00012899,2]
[423245158,1779984639000,-500.0,0.00012899,2]
[423245160,1779984639000,-500.0,0.00012899,2]
[423245162,1779984639000,-500.0,0.00012899,2]
[423245163,1779984639000,-500.0,0.00012899,2]
[423245154,1779984639000,-500.0,0.00012899,2]
[423245165,1779984639000,-500.0,0.00012899,2]
[423245167,1779984639000,-500.0,0.00012899,2]
[423245169,1779984639000,-500.0,0.00012899,2]
[423245171,1779984639000,-500.0,0.00012899,2]
[423245173,1779984639000,-500.0,0.00012899,2]
[423245175,1779984639000,-500.0,0.00012899,2]
[423245177,1779984639000,-500.0,0.00012899,2]
[423245179,1779984639000,-500.0,0.00012899,2]
[423245181,1779984639000,-500.0,0.00012899,2]
[423245183,1779984639000,-500.0,0.00012899,2]
[423245187,1779984639000,-640.70055801,0.00012899,2]
[423245185,1779984639000,-500.0,0.00012899,2]
[423245189,1779984639000,-500.0,0.00012899,2]
[423245195,1779984639000,-500.0,0.00012899,2]
[423245193,1779984639000,-500.0,0.00012899,2]
[423245197,1779984639000,-500.0,0.00012899,2]
[423245215,1779984639000,-500.0,0.00012899,2]
[423245210,1779984639000,-500.0,0.00012899,2]
[423245212,1779984639000,-500.0,0.00012899,2]
[423245213,1779984639000,-500.0,0.00012899,2]
[423245199,1779984639000,-500.0,0.00012899,2]
[423245203,1779984639000,-500.0,0.00012899,2]
[423245201,1779984639000,-500.0,0.00012899,2]
[423245287,1779984639000,-150.0,0.00013029,2]
[423245304,1779984639000,-150.0,0.00013275,2]
[423245291,1779984639000,-160.11,0.00013049,2]
[423245355,1779984639000,-6503.42,0.00014048,2]
[423245368,1779984639000,-166.66,0.00014247,2]
[423245366,1779984639000,-4431.14125192,0.00014224,2]
[423245361,1779984639000,-500.0,0.00014196,2]
[423245359,1779984639000,-166.66,0.0001411,2]
[423245364,1779984639000,-797.36,0.00014197,2]
[423245357,1779984639000,-171.35,0.00014065,2]
[423245370,1779984639000,-166.66,0.00014384,2]
[423245373,1779984639000,-797.36,0.00014544,2]
[423245375,1779984639000,-583.77,0.00014568,2]
[423245372,1779984639000,-200.0,0.000145,5]
[423245378,1779984639000,-500.0,0.00014568,2]
[423245380,1779984639000,-500.0,0.00014568,2]
[423245383,1779984639000,-500.0,0.00014568,2]
[423245395,1779984639000,-162.51653277,0.0001469,2]
[423245385,1779984639000,-500.0,0.00014568,2]
[423245396,1779984639000,-583.77,0.00014699,2]
[423245399,1779984639000,-583.77,0.00014699,2]
[423245289,1779984639000,-2391.21778715,0.00013041,2]
[423245387,1779984639000,-500.0,0.00014568,2]
[423245403,1779984639000,-583.77,0.00014699,2]
[423245389,1779984639000,-5000.0,0.000146,2]
[423245393,1779984639000,-400.0,0.000146,5]
[423245401,1779984639000,-583.77,0.00014699,2]
[423245394,1779984639000,-2000.0,0.00014688,2]
[423245391,1779984639000,-3099.50449344,0.000146,2]
[423245392,1779984639000,-254.83217332,0.000146,2]
[423245407,1779984639000,-583.77,0.00014699,2]
[423245405,1779984639000,-583.77,0.00014699,2]
[423245353,1779984639000,-166.66,0.00013973,2]
[423245352,1779984639000,-215.50460005,0.00013865,2]
[423245397,1779984639000,-583.77,0.00014699,2]
[423245338,1779984639000,-217.5,0.000137,2]
[423245350,1779984639000,-797.36,0.00013851,2]
[423245293,1779984639000,-2000.0,0.00013056,2]
[423245283,1779984639000,-292.95,0.00012979,2]
[423245282,1779984639000,-150.0,0.00012906,2]
[423245295,1779984639000,-333.83,0.00013058,2]
[423245285,1779984639000,-5531.0,0.00013,5]
[423245300,1779984639000,-250.0,0.00013158,2]
[423245302,1779984639000,-158.15,0.00013249,2]
[423245312,1779984639000,-255.0,0.00013599,2]
[423245320,1779984639000,-2500.0,0.00013699,2]
[423245318,1779984639000,-200.0,0.00013699,2]
[423245315,1779984639000,-248.0,0.00013639,2]
[423245314,1779984639000,-500.0,0.00013611,2]
[423245308,1779984639000,-216.0,0.00013398,2]
[423245322,1779984639000,-166.66,0.00013699,2]
[423245297,1779984639000,-150.0,0.00013152,2]
[423245310,1779984639000,-200.0,0.000135,2]
[423245336,1779984639000,-499.99999999,0.00013699,2]
[423245334,1779984639000,-500.0,0.00013699,2]
[423245332,1779984639000,-500.0,0.00013699,2]
[423245344,1779984639000,-21286.61123454,0.0001379,2]
[423245348,1779984639000,-166.66,0.00013836,2]
[423245340,1779984639000,-161.25,0.00013706,2]
[423245346,1779984639000,-1422.71021537,0.00013833,2]
[423245330,1779984639000,-281.277164,0.00013699,2]
[423245328,1779984639000,-500.0,0.00013699,2]
[423245326,1779984639000,-500.0,0.00013699,2]
[423245324,1779984639000,-500.0,0.00013699,2]
[423245306,1779984639000,-2285.38,0.0001337,2]
[423245342,1779984639000,-500.0,0.00013753,2]
[423245455,1779984640000,-500.0,0.00014699,2]
[423245471,1779984640000,-500.0,0.00014699,2]
[423245457,1779984640000,-500.0,0.00014699,2]
[423245461,1779984640000,-500.0,0.00014699,2]
[423245459,1779984640000,-500.0,0.00014699,2]
[423245465,1779984640000,-500.0,0.00014699,2]
[423245467,1779984640000,-500.0,0.00014699,2]
[423245469,1779984640000,-500.0,0.00014699,2]
[423245473,1779984640000,-154.03324388,0.00014699,2]
[423245486,1779984640000,-376.44562677,0.00014699,2]
[423245463,1779984640000,-500.0,0.00014699,2]
[423245482,1779984640000,-500.0,0.00014699,2]
[423245484,1779984640000,-500.0,0.00014699,2]
[423245478,1779984640000,-500.0,0.00014699,2]
[423245496,1779984640000,-245.61,0.000147,2]
[423245476,1779984640000,-500.0,0.00014699,2]
[423245480,1779984640000,-500.0,0.00014699,2]
[423245488,1779984640000,-1413905.24548058,0.000147,2]
[423245441,1779984640000,-500.0,0.00014699,2]
[423245475,1779984640000,-500.0,0.00014699,2]
[423245453,1779984640000,-500.0,0.00014699,2]
[423245409,1779984640000,-583.77,0.00014699,2]
[423245447,1779984640000,-500.0,0.00014699,2]
[423245498,1779984640000,-151.0,0.000147,2]
[423245413,1779984640000,-583.77,0.00014699,2]
[423245411,1779984640000,-583.77,0.00014699,2]
[423245421,1779984640000,-500.0,0.00014699,2]
[423245422,1779984640000,-500.0,0.00014699,2]
[423245417,1779984640000,-500.0,0.00014699,2]
[423245419,1779984640000,-500.0,0.00014699,2]
[423245415,1779984640000,-500.0,0.00014699,2]
[423245425,1779984640000,-500.0,0.00014699,2]
[423245431,1779984640000,-500.0,0.00014699,2]
[423245429,1779984640000,-500.0,0.00014699,2]
[423245427,1779984640000,-500.0,0.00014699,2]
[423245433,1779984640000,-565.11243597,0.00014699,2]
[423245445,1779984640000,-500.0,0.00014699,2]
[423245443,1779984640000,-500.0,0.00014699,2]
[423245451,1779984640000,-500.0,0.00014699,2]
[423245438,1779984640000,-500.0,0.00014699,2]
[423245449,1779984640000,-500.0,0.00014699,2]
[423245436,1779984640000,-500.0,0.00014699,2]
[423245439,1779984640000,-517.19572837,0.00014699,2]
[423245500,1779984640000,-151.0,0.000147,2]
[423245503,1779984640000,-151.0,0.000147,2]
[423245499,1779984640000,-151.0,0.000147,2]
[423245528,1779984640000,-151.0,0.000147,2]
[423245529,1779984640000,-151.0,0.000147,2]
[423245525,1779984640000,-151.0,0.000147,2]
[423245526,1779984640000,-151.0,0.000147,2]
[423245524,1779984640000,-151.0,0.000147,2]
[423245527,1779984640000,-151.0,0.000147,2]
[423245523,1779984640000,-151.0,0.000147,2]
[423245531,1779984640000,-151.0,0.000147,2]
[423245530,1779984640000,-151.0,0.000147,2]
[423245537,1779984640000,-151.0,0.000147,2]
[423245532,1779984640000,-151.0,0.000147,2]
[423245539,1779984640000,-151.0,0.000147,2]
[423245538,1779984640000,-151.0,0.000147,2]
[423245536,1779984640000,-151.0,0.000147,2]
[423245534,1779984640000,-151.0,0.000147,2]
[423245535,1779984640000,-151.0,0.000147,2]
[423245542,1779984640000,-151.0,0.000147,2]
[423245540,1779984640000,-151.0,0.000147,2]
[423245495,1779984640000,-1086094.75451942,0.000147,2]
[423245522,1779984640000,-151.0,0.000147,2]
[423245521,1779984640000,-151.0,0.000147,2]
[423245533,1779984640000,-151.0,0.000147,2]
[423245518,1779984640000,-151.0,0.000147,2]
[423245497,1779984640000,-151.0,0.000147,2]
[423245519,1779984640000,-151.0,0.000147,2]
[423245501,1779984640000,-151.0,0.000147,2]
[423245502,1779984640000,-151.0,0.000147,2]
[423245504,1779984640000,-151.0,0.000147,2]
[423245505,1779984640000,-151.0,0.000147,2]
[423245507,1779984640000,-151.0,0.000147,2]
[423245506,1779984640000,-151.0,0.000147,2]
[423245510,1779984640000,-151.0,0.000147,2]
[423245515,1779984640000,-151.0,0.000147,2]
[423245516,1779984640000,-151.0,0.000147,2]
[423245511,1779984640000,-151.0,0.000147,2]
[423245541,1779984640000,-151.0,0.000147,2]
[423245512,1779984640000,-151.0,0.000147,2]
[423245513,1779984640000,-151.0,0.000147,2]
[423245509,1779984640000,-151.0,0.000147,2]
[423245508,1779984640000,-151.0,0.000147,2]
[423245514,1779984640000,-151.0,0.000147,2]
[423245517,1779984640000,-151.0,0.000147,2]
[423245520,1779984640000,-151.0,0.000147,2]
[423245582,1779984641000,-151.0,0.000147,2]
[423245583,1779984641000,-151.0,0.000147,2]
[423245585,1779984641000,-151.0,0.000147,2]
[423245578,1779984641000,-151.0,0.000147,2]
[423245587,1779984641000,-151.0,0.000147,2]
[423245580,1779984641000,-151.0,0.000147,2]
[423245579,1779984641000,-151.0,0.000147,2]
[423245577,1779984641000,-151.0,0.000147,2]
[423245576,1779984641000,-151.0,0.000147,2]
[423245588,1779984641000,-151.0,0.000147,2]
[423245575,1779984641000,-151.0,0.000147,2]
[423245581,1779984641000,-151.0,0.000147,2]
[423245586,1779984641000,-151.0,0.000147,2]
[423245597,1779984641000,-700.0,0.000147,5]
[423245584,1779984641000,-151.0,0.000147,2]
[423245591,1779984641000,-151.0,0.000147,2]
[423245600,1779984641000,-900.0,0.000148,5]
[423245592,1779984641000,-151.0,0.000147,2]
[423245593,1779984641000,-151.0,0.000147,2]
[423245601,1779984641000,-350.13640107,0.00014809,2]
[423245590,1779984641000,-151.0,0.000147,2]
[423245594,1779984641000,-151.0,0.000147,2]
[423245595,1779984641000,-151.0,0.000147,2]
[423245598,1779984641000,-500.0,0.00014712,2]
[423245599,1779984641000,-433.0,0.00014799,2]
[423245571,1779984641000,-151.0,0.000147,2]
[423245589,1779984641000,-151.0,0.000147,2]
[423245573,1779984641000,-151.0,0.000147,2]
[423245546,1779984641000,-151.0,0.000147,2]
[423245572,1779984641000,-151.0,0.000147,2]
[423245543,1779984641000,-151.0,0.000147,2]
[423245555,1779984641000,-151.0,0.000147,2]
[423245547,1779984641000,-151.0,0.000147,2]
[423245551,1779984641000,-151.0,0.000147,2]
[423245556,1779984641000,-151.0,0.000147,2]
[423245553,1779984641000,-151.0,0.000147,2]
[423245548,1779984641000,-151.0,0.000147,2]
[423245545,1779984641000,-151.0,0.000147,2]
[423245602,1779984641000,-797.36,0.0001489,2]
[423245549,1779984641000,-151.0,0.000147,2]
[423245554,1779984641000,-151.0,0.000147,2]
[423245552,1779984641000,-151.0,0.000147,2]
[423245550,1779984641000,-151.0,0.000147,2]
[423245574,1779984641000,-151.0,0.000147,2]
[423245544,1779984641000,-151.0,0.000147,2]
[423245568,1779984641000,-151.0,0.000147,2]
[423245569,1779984641000,-151.0,0.000147,2]
[423245567,1779984641000,-151.0,0.000147,2]
[423245566,1779984641000,-151.0,0.000147,2]
[423245561,1779984641000,-151.0,0.000147,2]
[423245559,1779984641000,-151.0,0.000147,2]
[423245560,1779984641000,-151.0,0.000147,2]
[423245562,1779984641000,-151.0,0.000147,2]
[423245563,1779984641000,-151.0,0.000147,2]
[423245557,1779984641000,-151.0,0.000147,2]
[423245564,1779984641000,-151.0,0.000147,2]
[423245565,1779984641000,-151.0,0.000147,2]
[423245570,1779984641000,-151.0,0.000147,2]
[423245558,1779984641000,-151.0,0.000147,2]
[423245603,1779984641000,-5405.42686777,0.0001489,2]
[423245596,1779984641000,-151.0,0.000147,2]
[423245605,1779984641000,-500.0,0.00014899,2]
[423245633,1779984641000,-1283.13161698,0.00015058,2]
[423245638,1779984641000,-797.36,0.00015236,2]
[423245641,1779984641000,-164.32,0.00015376,2]
[423245649,1779984641000,-3099.50449341,0.00015744,2]
[423245651,1779984641000,-3510.0,0.00015871,5]
[423245650,1779984641000,-476.75,0.00015772,2]
[423245640,1779984641000,-397.03,0.00015334,2]
[423245642,1779984641000,-1667.22697727,0.000154,2]
[423245652,1779984641000,-476.75,0.0001589,2]
[423245643,1779984641000,-11115.86,0.00015464,2]
[423245645,1779984641000,-1667.22697727,0.000156,2]
[423245644,1779984641000,-4431.14125192,0.00015559,2]
[423245647,1779984641000,-1667.22697727,0.000157,2]
[423245648,1779984641000,-476.79,0.00015736,2]
[423245646,1779984641000,-476.77,0.00015677,2]
[423245654,1779984641000,-1667.22697727,0.000159,2]
[423245664,1779984641000,-150.0,0.000159,2]
[423245655,1779984641000,-150.0,0.000159,2]
[423245653,1779984641000,-150.0,0.000159,2]
[423245656,1779984641000,-150.0,0.000159,2]
[423245660,1779984641000,-150.0,0.000159,2]
[423245658,1779984641000,-150.0,0.000159,2]
[423245657,1779984641000,-150.0,0.000159,2]
[423245662,1779984641000,-150.0,0.000159,2]
[423245663,1779984641000,-150.0,0.000159,2]
[423245659,1779984641000,-150.0,0.000159,2]
[423245607,1779984641000,-500.0,0.00014923,2]
[423245634,1779984641000,-1283.13161698,0.00015073,2]
[423245629,1779984641000,-1283.13161698,0.00015035,2]
[423245661,1779984641000,-150.0,0.000159,2]
[423245632,1779984641000,-1283.13161698,0.00015048,2]
[423245639,1779984641000,-218.05,0.0001532,2]
[423245606,1779984641000,-1100.0,0.000149,5]
[423245613,1779984641000,-583.77,0.00014989,2]
[423245609,1779984641000,-1172.5864468,0.00014963,2]
[423245614,1779984641000,-112204.0538599,0.0001499,2]
[423245612,1779984641000,-171.62,0.00014976,2]
[423245608,1779984641000,-500.0,0.00014923,2]
[423245611,1779984641000,-1913.579,0.00014973,2]
[423245610,1779984641000,-155.369,0.00014973,2]
[423245616,1779984641000,-1177.3740338,0.0001499,2]
[423245626,1779984641000,-1283.13161698,0.00015022,2]
[423245618,1779984641000,-583.77,0.00014999,2]
[423245617,1779984641000,-3101.1374816,0.0001499,2]
[423245625,1779984641000,-330.0,0.00015014,3]
[423245604,1779984641000,-500.0,0.00014899,2]
[423245621,1779984641000,-870329.18159066,0.00015,2]
[423245620,1779984641000,-583.77,0.00014999,2]
[423245635,1779984641000,-583.77,0.00015086,2]
[423245636,1779984641000,-1283.13161698,0.00015087,2]
[423245631,1779984641000,-1283.13161698,0.00015042,2]
[423245630,1779984641000,-1283.13161698,0.00015041,2]
[423245628,1779984641000,-1283.13161698,0.00015028,2]
[423245637,1779984641000,-1283.13161698,0.00015094,2]
[423245622,1779984641000,-400.43019345,0.00015,2]
[423245623,1779984641000,-1283.13161698,0.00015011,2]
[423245627,1779984641000,-1283.13161698,0.00015025,2]
[423245619,1779984641000,-583.77,0.00014999,2]
[423245615,1779984641000,-14046.0734639,0.0001499,2]
[423245624,1779984641000,-1283.13161698,0.00015013,2]
[423245702,1779984642000,-236.05959562,0.00018,2]
[423245714,1779984642000,-2915.8,0.0001841,2]
[423245713,1779984642000,-443.1871022,0.000184,2]
[423245703,1779984642000,-443.1871022,0.00018,2]
[423245698,1779984642000,-178.95,0.000178,2]
[423245699,1779984642000,-2000.0,0.00017952,2]
[423245701,1779984642000,-169.44,0.00017966,2]
[423245697,1779984642000,-180.0,0.0001778,2]
[423245696,1779984642000,-1252.0,0.00017511,2]
[423245704,1779984642000,-350.0,0.00018,2]
[423245700,1779984642000,-169.44,0.00017966,2]
[423245695,1779984642000,-333.83,0.00017496,2]
[423245711,1779984642000,-16267.29,0.00018356,2]
[423245709,1779984642000,-443.1871022,0.000182,2]
[423245710,1779984642000,-4431.14125192,0.00018228,2]
[423245707,1779984642000,-1049.39,0.00018063,2]
[423245706,1779984642000,-412.93996892,0.0001805,2]
[423245708,1779984642000,-236.05959562,0.000182,2]
[423245712,1779984642000,-236.05959562,0.000184,2]
[423245716,1779984642000,-350.0,0.00018465,2]
[423245718,1779984642000,-443.1871022,0.000185,2]
[423245717,1779984642000,-236.05959562,0.000185,2]
[423245715,1779984642000,-703.0,0.00018465,2]
[423245726,1779984642000,-207.34386466,0.00019,2]
[423245719,1779984642000,-200.0,0.00018501,2]
[423245693,1779984642000,-162.25,0.00017,2]
[423245705,1779984642000,-3099.50449341,0.00018033,2]
[423245694,1779984642000,-245.61,0.00017,2]
[423245679,1779984642000,-397.03,0.00016704,2]
[423245692,1779984642000,-162.25,0.00017,2]
[423245724,1779984642000,-194.13036656,0.00018894,2]
[423245665,1779984642000,-150.0,0.000159,2]
[423245667,1779984642000,-150.0,0.000159,2]
[423245666,1779984642000,-150.0,0.000159,2]
[423245676,1779984642000,-300.0,0.00016683,2]
[423245677,1779984642000,-250.0,0.00016683,2]
[423245668,1779984642000,-156.44778373,0.000159,2]
[423245674,1779984642000,-2915.8,0.00016438,2]
[423245672,1779984642000,-2000.0,0.0001632,2]
[423245671,1779984642000,-736.0,0.00016099,2]
[423245669,1779984642000,-1667.22697727,0.00016,2]
[423245673,1779984642000,-736.86764884,0.00016438,2]
[423245691,1779984642000,-162.25,0.00017,2]
[423245675,1779984642000,-300.0,0.00016683,2]
[423245689,1779984642000,-162.25,0.00017,2]
[423245678,1779984642000,-150.0,0.00016683,2]
[423245690,1779984642000,-162.25,0.00017,2]
[423245680,1779984642000,-168.1,0.00016712,2]
[423245681,1779984642000,-3099.50449341,0.00016889,2]
[423245682,1779984642000,-4431.14125192,0.00016893,2]
[423245683,1779984642000,-3325.0,0.00016906,5]
[423245684,1779984642000,-3757.0,0.00016906,5]
[423245686,1779984642000,-162.25,0.00017,2]
[423245685,1779984642000,-1422.71021531,0.00016935,2]
[423245687,1779984642000,-162.25,0.00017,2]
[423245688,1779984642000,-162.25,0.00017,2]
[423245670,1779984642000,-300.0,0.00016,2]
[423245722,1779984642000,-236.05959562,0.000187,2]
[423245729,1779984642000,-3099.50449341,0.00019178,2]
[423245723,1779984642000,-443.1871022,0.000187,2]
[423245756,1779984642000,-500.0,0.00019726,2]
[423245755,1779984642000,-500.0,0.00019726,2]
[423245753,1779984642000,-615.0,0.00019726,2]
[423245760,1779984642000,-501.07256824,0.00019726,2]
[423245758,1779984642000,-500.0,0.00019726,2]
[423245761,1779984642000,-150.0,0.00019726,2]
[423245759,1779984642000,-500.0,0.00019726,2]
[423245763,1779984642000,-150.0,0.00019726,2]
[423245765,1779984642000,-500.0,0.00019726,2]
[423245766,1779984642000,-150.0,0.00019726,2]
[423245772,1779984642000,-500.0,0.00019726,2]
[423245767,1779984642000,-500.0,0.00019726,2]
[423245754,1779984642000,-206.64800166,0.00019726,2]
[423245773,1779984642000,-500.0,0.00019726,2]
[423245770,1779984642000,-500.0,0.00019726,2]
[423245764,1779984642000,-150.0,0.00019726,2]
[423245771,1779984642000,-500.0,0.00019726,2]
[423245769,1779984642000,-284.0,0.00019726,2]